[Event "7° Rencontres Internationales des Echecs Francophones"]
[Site "PARIS, France"]
[Date "2019.08.10"]
[Round "5.9"]
[White "Le Quang, Kim"]
[Black "Le Roux, Jean-Pierre"]
[Result "0-1"]
[TimeControl "90'+30' + 30seconds/move"]
[WhiteElo "2150"]
[BlackElo "2535"]

1. c4 {[%clk 00:05:04]} {[%emt 00:00:01]} g6 {[%clk 00:05:04]} {[%emt
00:00:02]} 2. g3 {[%clk 00:05:05]} {[%emt 00:00:02]} Bg7 {[%clk 00:05:06]} 3.
Bg2 {[%clk 00:05:07]} {[%emt 00:00:01]} c5 {[%clk 00:05:06]} {[%emt 00:00:03]}
4. Nc3 {[%clk 00:05:09]} {[%emt 00:00:01]} Nc6 {[%clk 00:05:06]} {[%emt
00:00:03]} 5. a3 {[%clk 00:05:10]} {[%emt 00:00:02]} e6 {[%clk 00:05:04]}
{[%emt 00:00:05]} 6. b4 {[%clk 00:05:01]} {[%emt 00:00:12]} Nge7 {[%clk
00:05:03]} {[%emt 00:00:04]} 7. Rb1 {[%clk 00:04:53]} {[%emt 00:00:11]} O-O
{[%clk 00:04:56]} {[%emt 00:00:09]} 8. Nf3 {[%clk 00:04:23]} {[%emt 00:00:34]}
d6 {[%clk 00:04:02]} {[%emt 00:00:57]} 9. O-O {[%clk 00:04:13]} {[%emt
00:00:13]} Rb8 {[%clk 00:04:04]} 10. e3 {[%clk 00:03:39]} {[%emt 00:00:37]} Nf5
{[%clk 00:03:41]} {[%emt 00:00:26]} 11. Qe2 {[%clk 00:03:32]} {[%emt 00:00:10]}
Re8 {[%clk 00:03:28]} {[%emt 00:00:16]} 12. Rd1 {[%clk 00:03:07]} {[%emt
00:00:28]} b6 {[%clk 00:03:11]} {[%emt 00:00:20]} 13. b5 {[%clk 00:03:00]}
{[%emt 00:00:10]} Na5 {[%clk 00:03:10]} {[%emt 00:00:04]} 14. Bb2 {[%clk
00:03:00]} {[%emt 00:00:03]} d5 {[%clk 00:03:01]} {[%emt 00:00:12]} 15. d3
{[%clk 00:02:51]} {[%emt 00:00:12]} Bb7 {[%clk 00:02:56]} {[%emt 00:00:08]} 16.
Na4 {[%clk 00:02:13]} {[%emt 00:00:41]} Bxb2 {[%clk 00:02:27]} {[%emt
00:00:31]} 17. Nxb2 {[%clk 00:02:02]} {[%emt 00:00:15]} Qf6 {[%clk 00:02:18]}
{[%emt 00:00:11]} 18. e4 {[%clk 00:01:31]} {[%emt 00:00:34]} Nd4 {[%clk
00:02:19]} {[%emt 00:00:03]} 19. Nxd4 {[%clk 00:01:31]} {[%emt 00:00:02]} Qxd4
{[%clk 00:02:18]} {[%emt 00:00:03]} 20. e5 {[%clk 00:01:25]} {[%emt 00:00:10]}
Rbd8 {[%clk 00:02:19]} {[%emt 00:00:02]} 21. Qe3 {[%clk 00:00:41]} {[%emt
00:00:47]} Qc3 {[%clk 00:01:51]} {[%emt 00:00:30]} 22. d4 {[%clk 00:00:28]}
{[%emt 00:00:16]} cxd4 {[%clk 00:00:19]} {[%emt 00:01:35]} 23. Qxd4 {[%clk
00:00:29]} {[%emt 00:00:02]} Qxa3 {[%clk 00:00:18]} {[%emt 00:00:05]} 24. cxd5
{[%clk 00:00:17]} {[%emt 00:00:15]} Bxd5 {[%clk 00:00:18]} {[%emt 00:00:02]} 25.
Qh4 {[%clk 00:00:14]} {[%emt 00:00:05]} Qe7 {[%clk 00:00:16]} {[%emt 00:00:05]}
26. Qxe7 Rxe7 {[%clk 00:00:18]} 27. Nd3 {[%clk 00:00:13]} {[%emt 00:00:05]}
Red7 {[%clk 00:00:20]} 28. Nb4 {[%clk 00:00:12]} {[%emt 00:00:04]} Bxg2 {[%clk
00:00:17]} {[%emt 00:00:06]} 29. Rxd7 {[%clk 00:00:14]} {[%emt 00:00:02]} Rxd7
{[%clk 00:00:19]} 30. Kxg2 {[%clk 00:00:16]} {[%emt 00:00:01]} Rc7 {[%clk
00:00:11]} {[%emt 00:00:12]} 31. Rd1 {[%clk 00:00:11]} {[%emt 00:00:07]} Rc5
{[%clk 00:00:13]} {[%emt 00:00:01]} 32. Nc6 {[%clk 00:00:06]} {[%emt 00:00:09]}
Nxc6 {[%clk 00:00:14]} {[%emt 00:00:01]} 33. bxc6 {[%clk 00:00:07]} {[%emt
00:00:01]} Rxc6 {[%clk 00:00:17]} 34. Rd7 {[%clk 00:00:08]} {[%emt 00:00:02]}
a5 {[%clk 00:00:19]} {[%emt 00:00:01]} 35. Ra7 {[%clk 00:00:10]} {[%emt
00:00:01]} Rc5 {[%clk 00:00:21]} 36. Ra6 {[%clk 00:00:12]} {[%emt 00:00:02]}
Rxe5 {[%clk 00:00:19]} {[%emt 00:00:05]} 37. Rxb6 {[%clk 00:00:14]} Rc5 {[%clk
00:00:21]} 38. Ra6 {[%clk 00:00:16]} g5 {[%clk 00:00:22]} {[%emt 00:00:02]} 39.
Kf3 {[%clk 00:00:18]} Kg7 {[%clk 00:00:23]} {[%emt 00:00:02]} 40. Ke4 {[%clk
00:00:20]} h6 {[%clk 00:00:23]} {[%emt 00:00:03]} 41. h3 {[%clk 00:00:21]}
{[%emt 00:00:02]} Kf6 {[%clk 00:00:25]} 42. f4 {[%clk 00:00:23]} Rc4+ {[%clk
00:00:21]} {[%emt 00:00:07]} 43. Kf3 {[%clk 00:00:25]} {[%emt 00:00:01]} gxf4
{[%clk 00:00:22]} {[%emt 00:00:02]} 44. gxf4 {[%clk 00:00:27]} Rc5 {[%clk
00:00:14]} {[%emt 00:00:11]} 45. Kg4 {[%clk 00:00:27]} {[%emt 00:00:03]} h5+
{[%clk 00:00:14]} {[%emt 00:00:04]} 46. Kh4 {[%clk 00:00:25]} {[%emt 00:00:06]}
Kf5 {[%clk 00:00:14]} {[%emt 00:00:03]} 47. Ra7 {[%clk 00:00:27]} f6 {[%clk
00:00:14]} {[%emt 00:00:02]} 48. Kxh5 {[%clk 00:00:28]} {[%emt 00:00:03]} e5
{[%clk 00:00:08]} {[%emt 00:00:09]} 49. fxe5 {[%clk 00:00:29]} fxe5 {[%clk
00:00:10]} 50. Rf7+ {[%clk 00:00:30]} {[%emt 00:00:02]} Ke4 {[%clk 00:00:12]}
{[%emt 00:00:02]} 51. Kg5 {[%clk 00:00:32]} Kd3 {[%clk 00:00:13]} {[%emt
00:00:02]} 52. h4 {[%clk 00:00:34]} e4+ {[%clk 00:00:15]} 53. Kf4 {[%clk
00:00:35]} {[%emt 00:00:02]} e3 {[%clk 00:00:14]} {[%emt 00:00:05]} 54. Rd7+
{[%clk 00:00:36]} {[%emt 00:00:01]} Ke2 {[%clk 00:00:16]} 55. Re7 {[%clk
00:00:37]} {[%emt 00:00:02]} Rc4+ {[%clk 00:00:17]} {[%emt 00:00:02]} 56. Kg5
{[%clk 00:00:38]} {[%emt 00:00:01]} Kd3 {[%clk 00:00:16]} {[%emt 00:00:04]} 57.
h5 {[%clk 00:00:40]} {[%emt 00:00:01]} e2 {[%clk 00:00:08]} {[%emt 00:00:11]}
58. h6 {[%clk 00:00:42]} Rc8 {[%clk 00:00:09]} {[%emt 00:00:02]} 59. Kg6 {[%clk
00:00:43]} {[%emt 00:00:02]} a4 {[%clk 00:00:10]} {[%emt 00:00:02]} 60. h7
{[%clk 00:00:42]} {[%emt 00:00:04]} a3 {[%clk 00:00:10]} {[%emt 00:00:03]} 61.
Rc7 {[%clk 00:00:08]} {[%emt 00:00:37]} Re8 {[%clk 00:00:05]} {[%emt 00:00:08]}
62. Re7 {[%clk 00:00:09]} {[%emt 00:00:02]} Rxe7 {[%clk 00:00:07]} {[%emt
00:00:02]} 63. h8=Q {[%clk 00:00:11]} e1=Q {[%clk 00:00:08]} {[%emt 00:00:01]}
64. Qd8+ {[%clk 00:00:11]} {[%emt 00:00:03]} Kc4 {[%clk 00:00:10]} {[%emt
00:00:02]} 65. Qc8+ {[%clk 00:00:11]} {[%emt 00:00:02]} Kd5 {[%clk 00:00:12]}
{[%emt 00:00:02]} 66. Qa8+ {[%clk 00:00:12]} {[%emt 00:00:01]} Kc5 {[%clk
00:00:13]} {[%emt 00:00:03]} 67. Qxa3+ {[%clk 00:00:14]} {[%emt 00:00:02]} Qb4
{[%clk 00:00:13]} {[%emt 00:00:02]} 68. Qc1+ {[%clk 00:00:11]} {[%emt
00:00:05]} Kb6 {[%clk 00:00:14]} {[%emt 00:00:03]} 69. Qg1+ {[%clk 00:00:12]}
{[%emt 00:00:03]} Qc5 {[%clk 00:00:15]} {[%emt 00:00:02]} 70. Qb1+ {[%clk
00:00:13]} Kc7 {[%clk 00:00:17]} {[%emt 00:00:01]} 0-1

[Event "7° Rencontres Internationales des Echecs Francophones"]
[Site "PARIS, France"]
[Date "2019.08.10"]
[Round "5.3"]
[White "Sochacki, Christophe"]
[Black "Ider, Borya"]
[Result "0-1"]
[TimeControl "90'+30' + 30seconds/move"]
[WhiteElo "2443"]
[BlackElo "2492"]

1. b3 {[%clk 00:05:05]} {[%emt 00:06:33]} e6 {[%clk 00:05:05]} 2. Bb2 {[%clk
00:05:07]} {[%emt 00:00:02]} a5 {[%clk 00:05:07]} 3. c4 {[%clk 00:05:10]} a4
{[%clk 00:05:10]} 4. bxa4 {[%clk 00:05:12]} {[%emt 00:00:01]} c6 {[%clk
00:05:12]} 5. Nf3 {[%clk 00:05:11]} {[%emt 00:00:04]} d5 {[%clk 00:05:14]} 6.
e3 {[%clk 00:05:10]} {[%emt 00:00:04]} Nd7 {[%clk 00:05:15]} {[%emt 00:00:02]}
7. Nc3 {[%clk 00:05:08]} {[%emt 00:00:05]} Ngf6 {[%clk 00:05:17]} {[%emt
00:00:01]} 8. Be2 {[%clk 00:04:57]} {[%emt 00:00:14]} Bd6 {[%clk 00:05:16]}
{[%emt 00:00:03]} 9. d4 {[%clk 00:04:57]} {[%emt 00:00:03]} O-O {[%clk
00:05:13]} {[%emt 00:00:07]} 10. O-O {[%clk 00:04:58]} {[%emt 00:00:02]} Bb4
{[%clk 00:04:53]} {[%emt 00:00:23]} 11. c5 {[%clk 00:04:12]} {[%emt 00:00:50]}
Qe7 {[%clk 00:04:33]} {[%emt 00:00:22]} 12. Qc2 {[%clk 00:04:01]} {[%emt
00:00:14]} Ba5 {[%clk 00:04:22]} {[%emt 00:00:14]} 13. Bd3 {[%clk 00:03:48]}
{[%emt 00:00:16]} h6 {[%clk 00:03:33]} {[%emt 00:00:52]} 14. Rab1 {[%clk
00:03:50]} b6 {[%clk 00:03:15]} {[%emt 00:00:21]} 15. cxb6 {[%clk 00:03:40]}
{[%emt 00:00:12]} Nxb6 {[%clk 00:03:17]} 16. Ne5 {[%clk 00:03:41]} {[%emt
00:00:02]} Bb7 {[%clk 00:03:10]} {[%emt 00:00:10]} 17. Qb3 {[%clk 00:03:11]}
{[%emt 00:00:34]} Rfb8 {[%clk 00:03:11]} {[%emt 00:00:02]} 18. Ba3 {[%clk
00:03:12]} {[%emt 00:00:03]} Qd8 {[%clk 00:02:32]} {[%emt 00:00:41]} 19. Bc5
{[%clk 00:03:13]} {[%emt 00:00:02]} Nfd7 {[%clk 00:02:06]} {[%emt 00:00:28]} 20.
Bd6 {[%clk 00:02:29]} {[%emt 00:00:47]} Rc8 {[%clk 00:02:05]} {[%emt 00:00:04]}
21. Rfc1 {[%clk 00:01:59]} {[%emt 00:00:34]} Ba6 {[%clk 00:01:55]} {[%emt
00:00:14]} 22. Ne2 {[%clk 00:01:38]} {[%emt 00:00:24]} Nxe5 {[%clk 00:01:53]}
{[%emt 00:00:04]} 23. Bxa6 {[%clk 00:01:35]} {[%emt 00:00:07]} Rxa6 {[%clk
00:01:53]} {[%emt 00:00:03]} 24. Bxe5 {[%clk 00:01:31]} {[%emt 00:00:07]} Nc4
{[%clk 00:01:55]} 25. Qb7 {[%clk 00:01:10]} {[%emt 00:00:23]} Raa8 {[%clk
00:01:36]} {[%emt 00:00:23]} 26. Nf4 {[%clk 00:01:13]} Bd2 {[%clk 00:01:22]}
{[%emt 00:00:16]} 27. Nxe6 {[%clk 00:01:08]} {[%emt 00:00:07]} Qh4 {[%clk
00:00:59]} {[%emt 00:00:26]} 28. Nxg7 {[%clk 00:00:48]} {[%emt 00:00:24]} Nxe5
{[%clk 00:00:57]} {[%emt 00:00:05]} 29. Nf5 {[%clk 00:00:50]} Nf3+ {[%clk
00:00:52]} {[%emt 00:00:09]} 30. Kf1 {[%clk 00:00:36]} {[%emt 00:00:17]} Nxh2+
{[%clk 00:00:52]} {[%emt 00:00:02]} 31. Kg1 {[%clk 00:00:37]} {[%emt 00:00:02]}
Nf3+ {[%clk 00:00:50]} {[%emt 00:00:06]} 32. gxf3 {[%clk 00:00:21]} {[%emt
00:00:19]} Qg5+ {[%clk 00:00:52]} 33. Ng3 {[%clk 00:00:24]} Bxe3 {[%clk
00:00:54]} {[%emt 00:00:02]} 34. fxe3 {[%clk 00:00:09]} {[%emt 00:00:18]} Qxg3+
{[%clk 00:00:56]} 35. Kh1 {[%clk 00:00:12]} Qxf3+ {[%clk 00:00:55]} {[%emt
00:00:04]} 36. Kh2 {[%clk 00:00:14]} Qh5+ {[%clk 00:00:49]} {[%emt 00:00:09]}
37. Kg3 {[%clk 00:00:15]} {[%emt 00:00:03]} Re8 {[%clk 00:00:42]} {[%emt
00:00:10]} 38. Rg1 {[%clk 00:00:11]} {[%emt 00:00:07]} Kh8 {[%clk 00:00:40]}
{[%emt 00:00:04]} 39. Kf2 {[%clk 00:00:11]} {[%emt 00:00:03]} Qf5+ {[%clk
00:00:41]} {[%emt 00:00:03]} 40. Ke2 {[%clk 00:00:12]} {[%emt 00:00:01]} Rxa4
{[%clk 00:00:40]} {[%emt 00:00:05]} 41. Rb2 {[%clk 00:00:06]} {[%emt 00:00:09]}
Rxd4 {[%clk 00:00:28]} {[%emt 00:00:14]} 42. Qb3 {[%clk 00:00:05]} {[%emt
00:00:05]} Rde4 {[%clk 00:00:21]} {[%emt 00:00:10]} 43. Rg3 {[%clk 00:00:05]}
{[%emt 00:00:03]} d4 {[%clk 00:00:21]} {[%emt 00:00:02]} 44. Kd3 {[%clk
00:00:06]} {[%emt 00:00:03]} Rxe3+ {[%clk 00:00:23]} {[%emt 00:00:01]} 45. Kxd4
{[%clk 00:00:05]} {[%emt 00:00:03]} 0-1

[Event "7° Rencontres Internationales des Echecs Francophones"]
[Site "PARIS, France"]
[Date "2019.08.10"]
[Round "5.7"]
[White "Ternault, Mathieu"]
[Black "Aloma Vidal, Robert"]
[Result "0-1"]
[TimeControl "90'+30' + 30seconds/move"]
[WhiteElo "2158"]
[BlackElo "2417"]

1. b3 {[%clk 00:05:04]} {[%emt 00:00:01]} e5 {[%clk 00:05:02]} {[%emt
00:00:04]} 2. Bb2 {[%clk 00:05:06]} Nc6 {[%clk 00:05:04]} 3. e3 {[%clk
00:05:08]} Nf6 {[%clk 00:05:04]} {[%emt 00:00:03]} 4. Bb5 {[%clk 00:05:10]}
{[%emt 00:00:02]} Bd6 {[%clk 00:05:06]} 5. Na3 {[%clk 00:05:12]} {[%emt
00:00:02]} a6 {[%clk 00:05:00]} {[%emt 00:00:08]} 6. Bxc6 {[%clk 00:05:13]}
{[%emt 00:00:01]} dxc6 {[%clk 00:05:02]} 7. Nc4 {[%clk 00:05:15]} Qe7 {[%clk
00:05:04]} {[%emt 00:00:01]} 8. Ne2 {[%clk 00:05:15]} {[%emt 00:00:04]} Bd7
{[%clk 00:04:49]} {[%emt 00:00:18]} 9. O-O {[%clk 00:05:15]} {[%emt 00:00:02]}
O-O-O {[%clk 00:04:47]} {[%emt 00:00:05]} 10. f4 {[%clk 00:04:38]} {[%emt
00:00:39]} e4 {[%clk 00:04:49]} {[%emt 00:00:01]} 11. Qe1 {[%clk 00:04:07]}
{[%emt 00:00:35]} h5 {[%clk 00:04:40]} {[%emt 00:00:12]} 12. Qh4 {[%clk
00:03:58]} {[%emt 00:00:12]} Bc5 {[%clk 00:04:17]} {[%emt 00:00:25]} 13. Rad1
{[%clk 00:02:43]} {[%emt 00:01:19]} Bg4 {[%clk 00:04:09]} {[%emt 00:00:10]} 14.
Rfe1 {[%clk 00:02:22]} {[%emt 00:00:24]} Rhg8 {[%clk 00:03:48]} {[%emt
00:00:24]} 15. Qg5 {[%clk 00:02:08]} {[%emt 00:00:17]} Ba7 {[%clk 00:03:35]}
{[%emt 00:00:16]} 16. h3 {[%clk 00:01:57]} {[%emt 00:00:15]} Be6 {[%clk
00:03:30]} {[%emt 00:00:08]} 17. Nd4 {[%clk 00:01:52]} {[%emt 00:00:08]} Bxc4
{[%clk 00:03:11]} {[%emt 00:00:22]} 18. bxc4 {[%clk 00:01:54]} Qb4 {[%clk
00:03:13]} {[%emt 00:00:01]} 19. Bc3 {[%clk 00:01:43]} {[%emt 00:00:13]} Qxc4
{[%clk 00:03:15]} {[%emt 00:00:02]} 20. Rb1 {[%clk 00:01:45]} Bxd4 {[%clk
00:02:57]} {[%emt 00:00:20]} 21. Rb4 {[%clk 00:00:50]} {[%emt 00:00:58]} Bxe3+
{[%clk 00:01:39]} {[%emt 00:01:22]} 22. Rxe3 {[%clk 00:00:48]} {[%emt
00:00:05]} Qd5 {[%clk 00:01:40]} {[%emt 00:00:01]} 23. Rd4 {[%clk 00:00:30]}
{[%emt 00:00:21]} Qxg5 {[%clk 00:01:37]} {[%emt 00:00:07]} 24. Rxd8+ {[%clk
00:00:16]} {[%emt 00:00:17]} Kxd8 {[%clk 00:01:17]} {[%emt 00:00:23]} 25. fxg5
{[%clk 00:00:17]} {[%emt 00:00:01]} Nd5 {[%clk 00:01:18]} {[%emt 00:00:01]} 26.
Rxe4 {[%clk 00:00:17]} {[%emt 00:00:03]} Nxc3 {[%clk 00:01:19]} {[%emt
00:00:02]} 27. dxc3 {[%clk 00:00:19]} {[%emt 00:00:01]} Re8 {[%clk 00:01:13]}
{[%emt 00:00:09]} 28. Rd4+ {[%clk 00:00:21]} Kc8 {[%clk 00:01:09]} {[%emt
00:00:07]} 29. Kf2 {[%clk 00:00:22]} {[%emt 00:00:02]} Re5 {[%clk 00:01:10]}
{[%emt 00:00:02]} 30. h4 {[%clk 00:00:23]} {[%emt 00:00:02]} c5 {[%clk
00:01:05]} {[%emt 00:00:08]} 31. Rf4 {[%clk 00:00:25]} Re7 {[%clk 00:01:05]}
{[%emt 00:00:03]} 32. Kf3 {[%clk 00:00:19]} {[%emt 00:00:08]} Kd7 {[%clk
00:01:07]} 33. g4 {[%clk 00:00:21]} hxg4+ {[%clk 00:01:07]} {[%emt 00:00:03]}
34. Kxg4 {[%clk 00:00:23]} {[%emt 00:00:02]} g6 {[%clk 00:01:02]} {[%emt
00:00:08]} 35. h5 {[%clk 00:00:11]} {[%emt 00:00:14]} gxh5+ {[%clk 00:01:02]}
{[%emt 00:00:04]} 36. Kxh5 {[%clk 00:00:13]} Ke8 {[%clk 00:01:00]} {[%emt
00:00:05]} 37. Rf5 {[%clk 00:00:07]} {[%emt 00:00:09]} b6 {[%clk 00:00:59]}
{[%emt 00:00:04]} 38. Rf2 {[%clk 00:00:08]} {[%emt 00:00:01]} Re3 {[%clk
00:01:00]} {[%emt 00:00:02]} 39. Kh6 {[%clk 00:00:09]} {[%emt 00:00:02]} Re6+
{[%clk 00:00:56]} {[%emt 00:00:07]} 40. Kh5 {[%clk 00:00:12]} Ke7 {[%clk
00:00:58]} {[%emt 00:00:02]} 41. a4 {[%clk 00:00:13]} {[%emt 00:00:02]} Re4
{[%clk 00:00:59]} {[%emt 00:00:02]} 42. Kh6 {[%clk 00:00:11]} {[%emt 00:00:05]}
Re6+ {[%clk 00:00:51]} {[%emt 00:00:11]} 43. Kh5 {[%clk 00:00:14]} Kf8 {[%clk
00:00:47]} {[%emt 00:00:07]} 44. Rd2 {[%clk 00:00:16]} Kg7 {[%clk 00:00:48]}
{[%emt 00:00:02]} 45. Rd7 {[%clk 00:00:18]} {[%emt 00:00:02]} Re3 {[%clk
00:00:47]} {[%emt 00:00:03]} 46. Rxc7 {[%clk 00:00:08]} {[%emt 00:00:14]} Rh3+
{[%clk 00:00:49]} 47. Kg4 {[%clk 00:00:11]} Rxc3 {[%clk 00:00:50]} {[%emt
00:00:01]} 48. Rc6 {[%clk 00:00:10]} {[%emt 00:00:03]} Rxc2 {[%clk 00:00:43]}
{[%emt 00:00:11]} 49. Rxb6 {[%clk 00:00:12]} Rc4+ {[%clk 00:00:45]} 50. Kf5
{[%clk 00:00:14]} Rxa4 {[%clk 00:00:48]} 51. g6 {[%clk 00:00:15]} {[%emt
00:00:02]} c4 {[%clk 00:00:43]} {[%emt 00:00:08]} 52. gxf7 {[%clk 00:00:16]}
{[%emt 00:00:02]} Kxf7 {[%clk 00:00:42]} {[%emt 00:00:03]} 53. Rb7+ {[%clk
00:00:19]} Ke8 {[%clk 00:00:44]} 54. Ke6 {[%clk 00:00:20]} {[%emt 00:00:02]}
Kd8 {[%clk 00:00:47]} 55. Kd6 {[%clk 00:00:22]} Kc8 {[%clk 00:00:48]} {[%emt
00:00:02]} 56. Rc7+ {[%clk 00:00:24]} Kb8 {[%clk 00:00:50]} {[%emt 00:00:01]}
57. Kd7 {[%clk 00:00:07]} {[%emt 00:00:21]} Rb4 {[%clk 00:00:50]} {[%emt
00:00:03]} 58. Rc6 {[%clk 00:00:08]} {[%emt 00:00:02]} Kb7 {[%clk 00:00:51]}
{[%emt 00:00:03]} 59. Rc7+ {[%clk 00:00:10]} Kb6 {[%clk 00:00:53]} 60. Kd6
{[%clk 00:00:11]} a5 {[%clk 00:00:51]} {[%emt 00:00:05]} 61. Rc8 {[%clk
00:00:14]} Kb7 {[%clk 00:00:37]} {[%emt 00:00:18]} 62. Rc5 {[%clk 00:00:15]}
{[%emt 00:00:01]} Ra4 {[%clk 00:00:36]} {[%emt 00:00:05]} 63. Rb5+ {[%clk
00:00:16]} {[%emt 00:00:02]} Ka6 {[%clk 00:00:38]} 64. Kc6 {[%clk 00:00:17]}
{[%emt 00:00:02]} Rb4 {[%clk 00:00:39]} {[%emt 00:00:02]} 65. Rh5 {[%clk
00:00:12]} {[%emt 00:00:09]} c3 {[%clk 00:00:41]} 66. Rh8 {[%clk 00:00:10]}
{[%emt 00:00:05]} Rc4 {[%clk 00:00:43]} {[%emt 00:00:01]} 67. Kd5 {[%clk
00:00:12]} c2 {[%clk 00:00:34]} {[%emt 00:00:11]} 68. Rh6+ {[%clk 00:00:04]}
{[%emt 00:00:11]} Kb5 {[%clk 00:00:35]} {[%emt 00:00:03]} 69. Kd4 {[%emt
00:00:07]} 0-1

[Event "7° Rencontres Internationales des Echecs Francophones"]
[Site "PARIS, France"]
[Date "2019.08.10"]
[Round "5.4"]
[White "Moussard, Jules"]
[Black "Guillemart, Serge"]
[Result "1-0"]
[TimeControl "90'+30' + 30seconds/move"]
[WhiteElo "2613"]
[BlackElo "1953"]

1. g3 {[%clk 00:05:03]} {[%emt 00:00:02]} g6 {[%clk 00:05:04]} {[%emt
00:00:02]} 2. Bg2 {[%clk 00:05:05]} Bg7 {[%clk 00:05:06]} {[%emt 00:00:01]} 3.
e4 {[%clk 00:05:07]} {[%emt 00:00:01]} c5 {[%clk 00:05:08]} {[%emt 00:00:01]} 4.
d3 {[%clk 00:05:08]} {[%emt 00:00:02]} Nc6 {[%clk 00:05:07]} {[%emt 00:00:04]}
5. f4 {[%clk 00:05:07]} {[%emt 00:00:03]} d6 {[%clk 00:05:04]} {[%emt
00:00:07]} 6. Nf3 {[%clk 00:05:08]} {[%emt 00:00:02]} e6 {[%clk 00:04:59]}
{[%emt 00:00:08]} 7. O-O {[%clk 00:05:09]} {[%emt 00:00:02]} Nge7 {[%clk
00:04:59]} {[%emt 00:00:02]} 8. c3 {[%clk 00:05:09]} {[%emt 00:00:04]} O-O
{[%clk 00:04:54]} {[%emt 00:00:07]} 9. Be3 {[%clk 00:05:11]} {[%emt 00:00:02]}
b6 {[%clk 00:04:36]} {[%emt 00:00:21]} 10. Nbd2 {[%clk 00:05:11]} {[%emt
00:00:02]} Bb7 {[%clk 00:04:33]} {[%emt 00:00:07]} 11. Qe2 {[%clk 00:05:03]}
{[%emt 00:00:11]} d5 {[%clk 00:04:28]} {[%emt 00:00:08]} 12. e5 {[%clk
00:05:04]} {[%emt 00:00:02]} f6 {[%clk 00:03:24]} {[%emt 00:01:07]} 13. exf6
{[%clk 00:04:57]} {[%emt 00:00:10]} Bxf6 {[%clk 00:03:24]} {[%emt 00:00:03]} 14.
Bf2 {[%clk 00:04:59]} Qd6 {[%clk 00:03:16]} {[%emt 00:00:11]} 15. Rae1 {[%clk
00:05:00]} {[%emt 00:00:03]} Bc8 {[%clk 00:03:03]} {[%emt 00:00:16]} 16. Ng5
{[%clk 00:04:50]} {[%emt 00:00:13]} Bxg5 {[%clk 00:02:58]} {[%emt 00:00:09]}
1-0

[Event "7° Rencontres Internationales des Echecs Francophones"]
[Site "PARIS, France"]
[Date "2019.08.10"]
[Round "5.5"]
[White "Onkoud, Abdelaziz"]
[Black "Sebag, Marie"]
[Result "0-1"]
[TimeControl "90'+30' + 30seconds/move"]
[WhiteElo "2305"]
[BlackElo "2494"]

1. c4 {[%clk 00:05:03]} {[%emt 00:00:02]} e5 {[%clk 00:05:03]} {[%emt
00:00:03]} 2. Nc3 {[%clk 00:05:01]} {[%emt 00:00:04]} Nf6 {[%clk 00:05:05]}
{[%emt 00:00:02]} 3. e3 {[%clk 00:04:58]} {[%emt 00:00:07]} Nc6 {[%clk
00:05:04]} {[%emt 00:00:03]} 4. a3 {[%clk 00:04:57]} {[%emt 00:00:04]} g6
{[%clk 00:04:56]} {[%emt 00:00:11]} 5. b4 {[%clk 00:04:38]} {[%emt 00:00:22]}
Bg7 {[%clk 00:04:56]} {[%emt 00:00:05]} 6. Bb2 {[%clk 00:04:40]} O-O {[%clk
00:04:52]} {[%emt 00:00:07]} 7. d3 {[%clk 00:04:37]} {[%emt 00:00:06]} d5
{[%clk 00:04:51]} {[%emt 00:00:04]} 8. cxd5 {[%clk 00:04:24]} {[%emt 00:00:16]}
Nxd5 {[%clk 00:04:53]} {[%emt 00:00:02]} 9. Rc1 {[%clk 00:04:19]} {[%emt
00:00:07]} Re8 {[%clk 00:04:47]} {[%emt 00:00:09]} 10. Nge2 {[%clk 00:03:58]}
{[%emt 00:00:23]} Be6 {[%clk 00:04:19]} {[%emt 00:00:31]} 11. Nxd5 {[%clk
00:03:52]} {[%emt 00:00:09]} Qxd5 {[%clk 00:04:10]} {[%emt 00:00:13]} 12. Nc3
{[%clk 00:03:51]} {[%emt 00:00:04]} Qd7 {[%clk 00:03:58]} {[%emt 00:00:16]} 13.
Be2 {[%clk 00:03:46]} {[%emt 00:00:07]} a5 {[%clk 00:03:54]} {[%emt 00:00:08]}
14. b5 {[%clk 00:03:23]} {[%emt 00:00:26]} Ne7 {[%clk 00:03:55]} {[%emt
00:00:02]} 15. O-O {[%clk 00:03:21]} {[%emt 00:00:05]} f5 {[%clk 00:03:35]}
{[%emt 00:00:23]} 16. Qc2 {[%clk 00:03:09]} {[%emt 00:00:14]} Rac8 {[%clk
00:03:15]} {[%emt 00:00:23]} 17. Rfd1 {[%clk 00:02:56]} {[%emt 00:00:16]} b6
{[%clk 00:03:08]} {[%emt 00:00:11]} 18. d4 {[%clk 00:01:47]} {[%emt 00:01:12]}
e4 {[%clk 00:02:35]} {[%emt 00:00:36]} 19. d5 {[%clk 00:01:48]} {[%emt
00:00:02]} Bf7 {[%clk 00:02:32]} {[%emt 00:00:06]} 20. Bc4 {[%clk 00:01:40]}
{[%emt 00:00:12]} Qd6 {[%clk 00:01:50]} {[%emt 00:00:44]} 21. Qb3 {[%clk
00:01:23]} {[%emt 00:00:20]} Be5 {[%clk 00:01:41]} {[%emt 00:00:12]} 22. h3
{[%clk 00:01:20]} {[%emt 00:00:05]} Red8 {[%clk 00:01:14]} {[%emt 00:00:31]} 23.
a4 {[%clk 00:01:00]} {[%emt 00:00:23]} Qf6 {[%clk 00:01:07]} {[%emt 00:00:09]}
24. Rc2 {[%clk 00:00:40]} {[%emt 00:00:24]} g5 {[%clk 00:01:01]} {[%emt
00:00:09]} 25. Rcd2 {[%clk 00:00:28]} {[%emt 00:00:15]} h5 {[%clk 00:01:00]}
{[%emt 00:00:04]} 26. d6 {[%clk 00:00:15]} {[%emt 00:00:16]} cxd6 {[%clk
00:00:55]} {[%emt 00:00:08]} 27. Bxf7+ {[%clk 00:00:11]} {[%emt 00:00:07]} Qxf7
{[%clk 00:00:57]} 28. Nd5 {[%clk 00:00:10]} {[%emt 00:00:05]} Nxd5 {[%clk
00:00:50]} {[%emt 00:00:10]} 29. Rxd5 {[%clk 00:00:07]} {[%emt 00:00:06]} Re8
{[%clk 00:00:38]} {[%emt 00:00:15]} 30. Bc1 {[%emt 00:00:20]} 0-1